Cogmind - Beta 14 @@@ ROGUE MODE // 2024.08.07 @ 15:43:51 Player: ktur Result: Destroyed by 4P-4LD(R) with Subdweller Machine Gun Performance ------------- Evolutions (0) 0 Regions Visited (2) 400 Robots Destroyed (9) 45 Value Destroyed (213) 213 Prototype IDs (2) 40 Alien Tech Used (0) 0 Bonus (0) 0 TOTAL SCORE: 698 Bonus ------- None Cogmind --------- Core Integrity 0/250 Matter 290/300 Energy 180/200 System Corruption 0% Temperature Cool (0) Movement Rolling (130) Ox2 Location -10/Subcaves Parts ------- > --- POWER (1) -------- Subdweller Power Source > --- PROPULSION (2) --- Compact Wheel > --- UTILITY (2) ------ High-capacity Storage Unit > --- WEAPON (2) ------- EM Shotgun > --- INVENTORY (20) --- Subdweller Optics Subdweller Beam Cannon Subdweller Machine Gun Peak State ------------ > --- POWER ------------ Ion Engine > --- PROPULSION ------- Light Treads Compact Wheel > --- UTILITY ---------- High-capacity Storage Unit Seismic Detector > --- WEAPON ----------- EM Shotgun EM Shotgun > --- INVENTORY -------- Light Treads High-capacity Battery EM Shotgun EM Shotgun Mining Laser SUBCON Basin [Rating: 27] Favorites ----------- Power Ion Engine Engine Ion Engine Propulsion Light Treads Treads Light Treads Wheel Compact Wheel Utility High-capacity Storage Unit Device Seismic Detector Storage High-capacity Storage Unit Weapon EM Shotgun Energy Gun EM Shotgun Ballistic Gun Light Assault Rifle Special Weapon Mining Laser Build | -11 -10 -10 ------- Run | Yrd Mat Sub Slots Evolved . | . . . Power . | . . . Propulsion . | . . . Utility . | . . . Weapon . | . . . Parts Attached 24 | 7 4 13 Power 3 | 1 . 2 Engine 3 | 1 . 2 Core . | . . . Reactor . | . . . Propulsion 8 | 2 . 6 Treads 4 | 2 . 2 Leg . | . . . Wheel 4 | . . 4 Hover . | . . . Flight . | . . . Utility 3 | 2 1 . Device 1 | 1 . . Storage 2 | 1 1 . Processor . | . . . Hackware . | . . . Protection . | . . . Artifact . | . . . Weapon 10 | 2 3 5 Energy Gun 7 | 1 2 4 Energy Cannon . | . . . Ballistic Gun 1 | 1 . . Ballistic Cannon . | . . . Launcher . | . . . Special Weapon 2 | . 1 1 Impact Weapon . | . . . Slashing Weapon . | . . . Piercing Weapon . | . . . Special Melee Weapon . | . . . Unidentified Prototypes . | . . . Parts Lost 8 | . . 8 Power 1 | . . 1 Propulsion 2 | . . 2 Utility 1 | . . 1 Weapon 4 | . . 4 Highest Loss Streak 2 | . . 2 To Critical Strikes . | . . . Average Slot Usage (%) 91 | . 100 86 Engine 12 | . 14 11 Treads 21 | . 28 17 Wheel 4 | . . 6 Device 10 | . 14 8 Storage 14 | . 14 14 Energy Gun 21 | . 15 25 Special Weapon 4 | . 10 . Peak Build Rating 27 | 7 10 27 Average Rating 15 | 5 8 21 On Entrance 5 | . 7 9 Naked Turns . | . . . Heaviest Build 52 | 13 52 52 Greatest Support 40 | 40 40 40 Greatest Overweight (x) 3 | . 1 3 Average Overweight (x) 1 | . . 2 Largest Inventory Capacity 20 | 8 20 20 Average Capacity 18 | 7 18 20 Most Carried 20 | 5 13 20 Average Carried 14 | 3 11 17 Final Capacity 20 | 8 20 20 Final Carried 13 | 5 13 3 Class Distribution -------------------- 100% | Mutant Dominant Class ---------------- Mutant | -10/Materials Mutant | -10/Subcaves Resources | -11 -10 -10 ----------- Run | Yrd Mat Sub Matter Collected 411 | 208 20 183 Remotely . | . . . Salvage Created 244 | 10 20 214 Parts 20 | 3 1 16 Haulers Intercepted . | . . . Recyclers Shooed 1 | 1 . . Parts Field Recycled . | . . . Retrieved Matter . | . . . Parts Self-Destructed 10 | . . 10 Prevented . | . . . Kills | -11 -10 -10 ------- Run | Yrd Mat Sub Combat Hostiles Destroyed 7 | . . 7 Guns 5 | . . 5 AOE 2 | . . 2 Classes Destroyed 4 | 1 1 2 Tunneler 1 | 1 . . Watcher 1 | . 1 . Swarmer 3 | . . 3 Subdweller 4 | . . 4 Best Kill Streak 3 | 1 1 3 Combat Bots Only 3 | . . 3 Max Kills in Single Turn 2 | 1 1 2 Gunslinging . | . . . Exploded 2 | . . 2 Melee . | . . . Uniques/NPCs Destroyed . | . . . Combat | -11 -10 -10 -------- Run | Yrd Mat Sub Hostile Shots Fired 45 | . . 45 Missed 11 | . . 11 Damage Taken 891 | . . 891 Core 261 | . . 261 Absorbed by Shields . | . . . Core Remaining (%) 100 | 100 . . Volleys Fired 31 | 5 4 22 Largest 2 | 2 2 2 Hottest 100 | 60 100 100 Shots Fired 46 | 10 6 30 Gun 44 | 10 5 29 Cannon . | . . . Launcher . | . . . Special 2 | . 1 1 Kinetic 6 | 5 1 . Thermal 8 | 5 2 1 Explosive . | . . . Electromagnetic 32 | . 3 29 Robot Hit Streak 19 | 4 5 19 Robot Miss Streak 3 | 1 2 3 Penetration Max . | . . . Secondary Targets 1 | . . 1 Max Gunslinging Chain 1 | . . 1 Shots Hit Robots 38 | 7 4 27 Core Hits 21 | 2 1 18 Critical Kills . | . . . Critical Parts Destroyed . | . . . Critical Strikes . | . . . Melee Attacks . | . . . Impact . | . . . Slashing . | . . . Piercing . | . . . Sneak Attacks . | . . . Combat Hostiles . | . . . Follow-up Attacks . | . . . Damage Inflicted 524 | 67 69 388 Guns 472 | 67 69 336 Cannons . | . . . Explosions 52 | . . 52 Melee . | . . . Ramming . | . . . Kinetic 34 | 34 . . Thermal 96 | 33 11 52 Explosive . | . . . Electromagnetic 394 | . 58 336 Impact . | . . . Slashing . | . . . Piercing . | . . . Highest Corruption . | . . . Average Corruption . | . . . Corruption Purged . | . . . Corruption Blocked . | . . . Overload Shots . | . . . Overflow Damage . | . . . Projectiles . | . . . Explosions . | . . . Melee . | . . . Knockbacks . | . . . Impact . | . . . Kinetic . | . . . Secondary . | . . . Self-Inflicted Damage . | . . . Shots . | . . . Rammed . | . . . Targets Rammed . | . . . Kicked . | . . . Crushed . | . . . Highest Temperature 249 | 40 30 249 Average Temperature 58 | 20 12 141 Received Heat Transfer 373 | . . 373 Siege Activations . | . . . Robots Corrupted . | . . . Combat Hostiles . | . . . Parts Fried 2 | . 2 . Impact Corruptions . | . . . Robots Melted . | . . . Combat Hostiles . | . . . Parts Melted 1 | . . 1 Heat Transferred 100 | 75 25 . Parts Sabotaged . | . . . Parts Stolen . | . . . Parts Stripped . | . . . Power Chain Reactions 1 | . . 1 Alert | -11 -10 -10 ------- Run | Yrd Mat Sub Peak Influence 61 | 5 61 . Initial 3 | . 3 . Average 17 | 1 20 . Maximum Alert Level . | . . . Low Security (%) 100 | 100 100 . Level 1 . | . . . Level 2 . | . . . Level 3 . | . . . Level 4 . | . . . Level 5 . | . . . High Security . | . . . Max Security . | . . . Squads Dispatched . | . . . Investigation . | . . . Extermination . | . . . Reinforcement . | . . . Assault . | . . . Garrison . | . . . Intercept . | . . . Searches Triggered . | . . . Construction Impeded . | . . . Haulers Reinforced . | . . . Active Scanning Responses . | . . . Cargo Convoy Interrupts . | . . . Stealth | -11 -10 -10 --------- Run | Yrd Mat Sub Distress Signals . | . . . Communications Jammed . | . . . Distress Signals . | . . . Times Spotted 15 | . 3 12 Peak Tracking Total 3 | . 1 3 Tactical Retreats . | . . . Traps | -11 -10 -10 ------- Run | Yrd Mat Sub Traps Triggered . | . . . Indirectly . | . . . Trap Hack Attempts . | . . . Triggered . | . . . Disarmed . | . . . Reprogrammed . | . . . Reused . | . . . Traps Extracted . | . . . Installed . | . . . Triggered . | . . . Machines | -11 -10 -10 ---------- Run | Yrd Mat Sub Machines Disabled . | . . . Max in Single Turn . | . . . Machines Repaired . | . . . Machines Dismantled . | . . . Machines Sabotaged . | . . . Overloaded Fab Kills . | . . . Hacking | -11 -10 -10 --------- Run | Yrd Mat Sub Machines Accessed 6 | . 3 3 Terminals 3 | . 3 . Fabricators . | . . . Repair Stations . | . . . Recycling Units . | . . . Scanalyzers . | . . . Garrison Access . | . . . Total Hacks 15 | . 10 5 Successful 11 | . 6 5 Failed 4 | . 4 . Catastrophic . | . . . Database Lockouts . | . . . Manual 4 | . 4 . Terminals 10 | . 10 . Fabricators . | . . . Repair Stations . | . . . Recycling Units . | . . . Scanalyzers . | . . . Garrison Access . | . . . Terminal Hacks 10 | . 5 5 Record 3 | . . 3 Robot Analysis 2 | . 2 . Prototype ID Bank 1 | . 1 . Open Door 1 | . . 1 Locate Traps 1 | . 1 . Hauler Manifests 1 | . 1 . Release Object 1 | . . 1 Fabricator Hacks . | . . . Repair Station Hacks . | . . . Recycling Unit Hacks . | . . . Scanalyzer . | . . . Garrison Access Hacks . | . . . Unauthorized Hacks 1 | . 1 . Terminals 1 | . 1 . Track 1 | . 1 . Fabricators . | . . . Repair Stations . | . . . Recycling Units . | . . . Scanalyzers . | . . . Garrison Access . | . . . Data Cores Recovered . | . . . Used . | . . . Hacking Detections 2 | . 2 . Full Trace Events 1 | . 1 . Feedback Events . | . . . Feedback Blocked . | . . . Robot Schematics Acquired . | . . . Robots Built . | . . . Authchips . | . . . Time . | . . . Total Robot Build Rating . | . . . Part Schematics Acquired . | . . . Parts Built . | . . . Authchips . | . . . Time . | . . . Total Part Build Rating . | . . . Parts Repaired . | . . . Time . | . . . Parts Recycled . | . . . Recycled Matter . | . . . Retrieved Matter . | . . . Retrieved Components . | . . . Parts Scanalyzed . | . . . Part Schematics Acquired . | . . . Parts Damaged . | . . . Bothacking | -11 -10 -10 ------------ Run | Yrd Mat Sub Used RIF Installer . | . . . Robots Hacked . | . . . Non-combat . | . . . Combat . | . . . Robot Hacks Applied . | . . . Relay Couplers Released . | . . . Fabnet Peak Effective % . | . . . Robots Rewired . | . . . Allies Hacked . | . . . Hacks Repelled . | . . . Allies | -11 -10 -10 -------- Run | Yrd Mat Sub Total Allies . | . . . Largest Group . | . . . Highest-Rated Group . | . . . Highest-Rated Ally . | . . . Total Orders . | . . . Ally Attacks . | . . . Total Damage . | . . . Kills . | . . . Allies Corrupted . | . . . Allies Melted . | . . . Intel | -11 -10 -10 ------- Run | Yrd Mat Sub Robot Analysis Total 2 | . 2 . Derelict Logs Recovered 1 | . . 1 Drone Launches . | . . . Drone Recoveries . | . . . Exploration | -11 -10 -10 ------------- Run | Yrd Mat Sub Turns Passed 1936 | 135 690 1111 Spaces Moved 759 | 68 144 547 Core 2 | 2 . . Treads 429 | 66 144 219 Legs . | . . . Wheels 328 | . . 328 Hover . | . . . Flight . | . . . Fastest Speed 50 | 50 160 130 Average Speed 185 | 156 207 182 Slowest Speed 240 | 160 240 240 Overloaded Moves . | . . . Propulsion Burnouts . | . . . Robots Hopped . | . . . Cave-ins Triggered . | . . . Exploration Rate (%) 23 | 6 23 41 Regions Visited 2 Branch Regions 1 Pre-discovered Areas 1 | . . 1 Known Exits Taken . | . . . Unknown Exits Taken 2 | 1 1 . Scrap Searched 5 | . . 5 Spaces Dug 1 | . 1 . Terrain Destroyed 5 | . 1 4 Melee . | . . . Projectile 1 | . 1 . AOE 4 | . . 4 Terrain Rammed . | . . . Walls Destroyed . | . . . Machines Disabled . | . . . Actions | -11 -10 -10 --------- Run | Yrd Mat Sub Total 1238 | 85 526 627 Wait 396 | . 367 29 Move 757 | 67 143 547 Hop . | . . . Pick Up 18 | 6 8 4 Fast Attach 8 | 6 . 2 Attach 5 | 1 . 4 Detach . | . . . Swap 11 | . 4 7 Drop 11 | . . 11 Fire 31 | 5 4 22 Melee . | . . . Ram . | . . . Kick . | . . . Crush . | . . . Escape Stasis . | . . . Rewire . | . . . Trap . | . . . Miscellaneous 1 | . . 1 Route ------- -11/Scrapyard -10/Materials -10/Subcaves History --------- Turn | Location | Event 17 | -11/Scrapyard | Discovered new exit (range 15) 136 | -11/Scrapyard | Entered Materials 324 | -10/Materials | Build established: Mutant 811 | -10/Materials | Discovered new exit (range 4) 826 | -10/Materials | Entered Subcaves 1108 | -10/Subcaves | Found SUBCON Basin 1308 | -10/Subcaves | A swath of the cavern ceiling suddenly collapsed 1539 | -10/Subcaves | Core integrity fell below 50% 1554 | -10/Subcaves | Core integrity fell below 20% 1593 | -10/Subcaves | Visited Clippyterm 1600 | -10/Subcaves | Learned Factory fabricator intel 1762 | -10/Subcaves | Learned location of Zion (-7) 1918 | -10/Subcaves | Visited 4L-MR0's lab 1925 | -10/Subcaves | Released subatomizers from SUBCON Basin 1937 | -10/Subcaves | Destroyed by 4P-4LD(R) with Subdweller Machine Gun Last Messages --------------- World map updated: -7/Zion. 01768_ Searching scrap... 01768_ Found Shrapnel Trap. 01768_ Found Sub. Power Source. 01768_ Found 38 Matter. 01772_ Dropped Broken Sub. Power Source. 01773_ Acquired Sub. Power Source. 01781_ Searching scrap... 01781_ Found Piercing Trap. 01781_ Found 62 Matter. 01782_ Acquired 10 matter. 01808_ Subatomizers dissect the Flamer. 01906_ Searching scrap... 01906_ Found Riot Gun. 01906_ Found 50 Matter. 01918_ Mining Laser destroyed. 01920_ Dropped SUBCON Basin. 01925_ Released subatomizers from SUBCON Basin. 01928_ Acquired 5 matter. 01935_ EM Shotgun destroyed. Map ----- +----------------------------------------------------+ | ?????????????????????????????????????????? | | ?????????????????????????????????????????? | | ?????????????????????????????????????????? | | ?????????????????????????????????????????? | | ?????????????????????????????????????????? | | ?????????????????????????????????????????? | | ?????????????????????????????????????????? | | ?????????????????????????????????????????? | | ?????????????????????????????????????????? | | ?????????????????????????????????????????? | | ?????????????????????????????????????????? | | ?????????????????????????????????????????? | | ??????????????????????#??????????????????? | | ?????????????????????? ##??#### #???????? | | ???????????????###???? ## ##??????? | | ???????????##???$"##??# ? ##?????? | | ??????????? =???# ?## #? #?????? | | ???????????""##?#" "?# #? ???????? | | ???????????# ##" ###< #?# #????????? | | ???????????" #?# #" #?# #????????? | | ??????????#"" #?# ### ####?????? | | ??????????#"X #?# ## ##????? | | ???????????"" #?# #" #????? | | ???????????? #### ## #?????? | | ????????????? ## # ##?????? | | ?????????????#/##@ <## #####??????? | | ?????????????# ##RR ## #??????????? | | ?????????????# &